[Event "*** Titled Tuesday Blitz"]
[Site "Chess.com"]
[Date "2020.10.20"]
[Round "7"]
[White "shriyanasmallya"]
[Black "Pertinhez76"]
[Result "0-1"]
[WhiteElo "1657"]
[BlackElo "2141"]
[TimeControl "180+1"]
[EndTime "11:20:45 PDT"]
[Termination "Pertinhez76 won by checkmate"]

1. e4 {[%clk 0:03:00.9]} 1... e6 {[%clk 0:02:57.6]} 2. d4 {[%clk 0:03:00.3]}
2... d5 {[%clk 0:02:55.4]} 3. e5 {[%clk 0:02:58.6]} 3... c5 {[%clk 0:02:54.7]}
4. c3 {[%clk 0:02:56.6]} 4... Nc6 {[%clk 0:02:54.4]} 5. Nf3 {[%clk 0:02:54.8]}
5... Bd7 {[%clk 0:02:51.8]} 6. Be3 {[%clk 0:02:50.7]} 6... cxd4 {[%clk 0:02:51]}
7. cxd4 {[%clk 0:02:49.2]} 7... Qb6 {[%clk 0:02:48.4]} 8. Qd2 {[%clk 0:02:41.7]}
8... Nge7 {[%clk 0:02:43.2]} 9. Nc3 {[%clk 0:02:40.6]} 9... a6 {[%clk
0:02:41.6]} 10. Bd3 {[%clk 0:02:39.2]} 10... Na5 {[%clk 0:02:35.5]} 11. O-O
{[%clk 0:02:33.1]} 11... Rc8 {[%clk 0:02:35.3]} 12. Rac1 {[%clk 0:02:24.4]}
12... Ng6 {[%clk 0:02:34.7]} 13. b3 {[%clk 0:02:16.3]} 13... Bb4 {[%clk
0:02:32.6]} 14. Rc2 {[%clk 0:02:11.7]} 14... O-O {[%clk 0:02:31]} 15. Rfc1
{[%clk 0:02:10.8]} 15... Ba3 {[%clk 0:02:29.4]} 16. Rd1 {[%clk 0:02:07.4]} 16...
Rc7 {[%clk 0:02:20.8]} 17. Na4 {[%clk 0:02:03.5]} 17... Bxa4 {[%clk 0:02:18]}
18. bxa4 {[%clk 0:02:04.4]} 18... Rfc8 {[%clk 0:02:12.6]} 19. Rxc7 {[%clk
0:02:02.9]} 19... Qxc7 {[%clk 0:01:55.2]} 20. h3 {[%clk 0:01:25.5]} 20... Qc3
{[%clk 0:01:51.4]} 21. Qxc3 {[%clk 0:01:20.6]} 21... Rxc3 {[%clk 0:01:49.4]} 22.
Bxg6 {[%clk 0:01:20.3]} 22... hxg6 {[%clk 0:01:29]} 23. Bd2 {[%clk 0:01:19.7]}
23... Rd3 {[%clk 0:01:28]} 24. Ne1 {[%clk 0:01:15.8]} 24... Rxd4 {[%clk
0:01:25.9]} 25. Nc2 {[%clk 0:01:14.9]} 25... Rxd2 {[%clk 0:01:21.6]} 26. Rxd2
{[%clk 0:01:14.6]} 26... Bb2 {[%clk 0:01:21.8]} 27. Ne3 {[%clk 0:01:10.9]} 27...
Bxe5 {[%clk 0:01:16.7]} 28. Rc2 {[%clk 0:01:07]} 28... Nc6 {[%clk 0:01:14.2]}
29. Ng4 {[%clk 0:01:05.1]} 29... Bd6 {[%clk 0:01:13.2]} 30. a3 {[%clk
0:01:02.9]} 30... f5 {[%clk 0:01:11.8]} 31. Ne3 {[%clk 0:01:02]} 31... Kf7
{[%clk 0:01:11.5]} 32. Nd1 {[%clk 0:00:57.5]} 32... e5 {[%clk 0:01:09.8]} 33.
Nc3 {[%clk 0:00:53.7]} 33... Ke6 {[%clk 0:01:10]} 34. Rd2 {[%clk 0:00:50.2]}
34... d4 {[%clk 0:01:09.7]} 35. Na2 {[%clk 0:00:47.9]} 35... a5 {[%clk
0:01:08.1]} 36. Nc1 {[%clk 0:00:42.5]} 36... e4 {[%clk 0:01:07.7]} 37. Nb3
{[%clk 0:00:40.3]} 37... Ke5 {[%clk 0:01:03.5]} 38. Ra2 {[%clk 0:00:33.6]} 38...
g5 {[%clk 0:01:02.8]} 39. Nd2 {[%clk 0:00:32.5]} 39... d3 {[%clk 0:01:01.2]} 40.
Nc4+ {[%clk 0:00:32.1]} 40... Kd5 {[%clk 0:01:00.5]} 41. Ne3+ {[%clk 0:00:30.7]}
41... Ke6 {[%clk 0:00:59.6]} 42. Rb2 {[%clk 0:00:21.7]} 42... Bc5 {[%clk
0:00:57.2]} 43. Rxb7 {[%clk 0:00:19.9]} 43... f4 {[%clk 0:00:54.5]} 44. Nd1
{[%clk 0:00:18.5]} 44... e3 {[%clk 0:00:53.7]} 45. fxe3 {[%clk 0:00:17.2]} 45...
fxe3 {[%clk 0:00:54.6]} 46. Kf1 {[%clk 0:00:17.3]} 46... e2+ {[%clk 0:00:54.4]}
47. Ke1 {[%clk 0:00:18.2]} 47... exd1=Q+ {[%clk 0:00:53.1]} 48. Kxd1 {[%clk
0:00:19.1]} 48... Kd5 {[%clk 0:00:46.9]} 49. Kd2 {[%clk 0:00:19.9]} 49... Ne5
{[%clk 0:00:43.9]} 50. Kd1 {[%clk 0:00:20.8]} 50... Ke4 {[%clk 0:00:43.8]} 51.
Rxg7 {[%clk 0:00:18.8]} 51... Bxa3 {[%clk 0:00:44.3]} 52. Rxg5 {[%clk
0:00:18.7]} 52... Bb4 {[%clk 0:00:45.2]} 53. Rg8 {[%clk 0:00:17.9]} 53... Nc4
{[%clk 0:00:41]} 54. Re8+ {[%clk 0:00:18.8]} 54... Kd4 {[%clk 0:00:41.2]} 55. g4
{[%clk 0:00:17.2]} 55... Ne3+ {[%clk 0:00:40.6]} 56. Rxe3 {[%clk 0:00:17.3]}
56... d2 {[%clk 0:00:41.2]} 57. g5 {[%clk 0:00:18.2]} 57... Kxe3 {[%clk
0:00:40.4]} 58. g6 {[%clk 0:00:19.1]} 58... Bf8 {[%clk 0:00:40.4]} 59. g7 {[%clk
0:00:20]} 59... Bxg7 {[%clk 0:00:40.4]} 60. h4 {[%clk 0:00:19.2]} 60... Bh6
{[%clk 0:00:41.3]} 61. h5 {[%clk 0:00:20.1]} 61... Kd4 {[%clk 0:00:41.4]} 62.
Kc2 {[%clk 0:00:19.2]} 62... Kc4 {[%clk 0:00:42.3]} 63. Kd1 {[%clk 0:00:20]}
63... Kb4 {[%clk 0:00:42.5]} 64. Ke2 {[%clk 0:00:20.9]} 64... Kxa4 {[%clk
0:00:43.1]} 65. Kd1 {[%clk 0:00:21.8]} 65... Kb3 {[%clk 0:00:43.3]} 66. Ke2
{[%clk 0:00:21.7]} 66... a4 {[%clk 0:00:43.9]} 67. Kf3 {[%clk 0:00:22.3]} 67...
a3 {[%clk 0:00:44.5]} 68. Ke2 {[%clk 0:00:23]} 68... a2 {[%clk 0:00:45.2]} 69.
Kd1 {[%clk 0:00:23.9]} 69... a1=Q+ {[%clk 0:00:45.5]} 70. Ke2 {[%clk 0:00:24.8]}
70... d1=Q+ {[%clk 0:00:45.8]} 71. Kf2 {[%clk 0:00:25.7]} 71... Qad4+ {[%clk
0:00:45.9]} 72. Kg3 {[%clk 0:00:26.6]} 72... Q1g1+ {[%clk 0:00:46.1]} 73. Kf3
{[%clk 0:00:27.5]} 73... Qdg4# {[%clk 0:00:46.4]} 0-1

[Event "*** Titled Tuesday Blitz"]
[Site "Chess.com"]
[Date "2020.10.20"]
[Round "7"]
[White "As0nchess"]
[Black "GiantThresher"]
[Result "1-0"]
[WhiteElo "2623"]
[BlackElo "2817"]
[TimeControl "180+1"]
[EndTime "11:20:47 PDT"]
[Termination "As0nchess won by resignation"]

1. e4 {[%clk 0:03:00.3]} 1... e6 {[%clk 0:02:59.8]} 2. d4 {[%clk 0:03:00.2]}
2... d5 {[%clk 0:03:00.1]} 3. Nd2 {[%clk 0:03:00.6]} 3... c5 {[%clk 0:02:59]} 4.
exd5 {[%clk 0:03:00.6]} 4... exd5 {[%clk 0:02:59.4]} 5. Ngf3 {[%clk 0:03:01.2]}
5... Nc6 {[%clk 0:02:59.7]} 6. Bb5 {[%clk 0:03:00.6]} 6... Qe7+ {[%clk
0:02:59.7]} 7. Be2 {[%clk 0:02:58.2]} 7... Qc7 {[%clk 0:02:59.8]} 8. O-O {[%clk
0:02:55.1]} 8... Nf6 {[%clk 0:03:00.4]} 9. Re1 {[%clk 0:02:50.5]} 9... Be6
{[%clk 0:03:00.4]} 10. dxc5 {[%clk 0:02:36.5]} 10... Bxc5 {[%clk 0:03:01.3]} 11.
Nb3 {[%clk 0:02:37]} 11... Bb6 {[%clk 0:03:01.6]} 12. Nfd4 {[%clk 0:02:35.3]}
12... O-O {[%clk 0:03:01.4]} 13. c3 {[%clk 0:02:32.3]} 13... Rae8 {[%clk
0:03:01.1]} 14. Be3 {[%clk 0:02:29.6]} 14... Bd7 {[%clk 0:02:28.1]} 15. Nb5
{[%clk 0:02:18.3]} 15... Qd8 {[%clk 0:02:27.1]} 16. Bxb6 {[%clk 0:02:18.6]}
16... Qxb6 {[%clk 0:02:28]} 17. N5d4 {[%clk 0:02:19]} 17... Ne5 {[%clk
0:02:21.7]} 18. Qc2 {[%clk 0:02:04.6]} 18... Re7 {[%clk 0:02:17.3]} 19. Bf1
{[%clk 0:01:53]} 19... Rfe8 {[%clk 0:02:16.5]} 20. Re2 {[%clk 0:01:50.9]} 20...
Bg4 {[%clk 0:02:08.6]} 21. Re3 {[%clk 0:01:48.2]} 21... Nc4 {[%clk 0:02:05.5]}
22. Rxe7 {[%clk 0:01:46.7]} 22... Rxe7 {[%clk 0:02:06.4]} 23. Bxc4 {[%clk
0:01:43]} 23... dxc4 {[%clk 0:02:05]} 24. Nd2 {[%clk 0:01:43.9]} 24... Qc5
{[%clk 0:01:54.2]} 25. h3 {[%clk 0:01:42.7]} 25... Bh5 {[%clk 0:01:50.6]} 26.
Qa4 {[%clk 0:01:30.8]} 26... Rc7 {[%clk 0:01:22.3]} 27. Re1 {[%clk 0:01:30.2]}
27... h6 {[%clk 0:01:22.4]} 28. N2f3 {[%clk 0:01:19.4]} 28... Bxf3 {[%clk
0:01:10.5]} 29. Nxf3 {[%clk 0:01:20.3]} 29... b5 {[%clk 0:01:09.3]} 30. Qa6
{[%clk 0:01:15.1]} 30... Qc6 {[%clk 0:00:55.8]} 31. Qa5 {[%clk 0:01:02.1]} 31...
Rb7 {[%clk 0:00:44.9]} 32. Qd8+ {[%clk 0:00:59.8]} 32... Kh7 {[%clk 0:00:44.6]}
33. Nd4 {[%clk 0:00:59.4]} 33... Qd7 {[%clk 0:00:40]} 34. Qf8 {[%clk 0:00:57.9]}
34... b4 {[%clk 0:00:35.3]} 35. Re3 {[%clk 0:00:41.8]} 35... bxc3 {[%clk
0:00:35.2]} 36. bxc3 {[%clk 0:00:42.2]} 36... Rb1+ {[%clk 0:00:21.1]} 37. Kh2
{[%clk 0:00:41.9]} 37... Qc7+ {[%clk 0:00:21.6]} 38. g3 {[%clk 0:00:42.2]} 38...
Rb8 {[%clk 0:00:21.5]} 39. Qa3 {[%clk 0:00:37.3]} 39... Nd5 {[%clk 0:00:20.9]}
40. Rf3 {[%clk 0:00:36.7]} 40... Qe7 {[%clk 0:00:20.6]} 41. Qa5 {[%clk
0:00:33.6]} 41... Qd7 {[%clk 0:00:19.3]} 42. Rf5 {[%clk 0:00:32.5]} 42... Nf6
{[%clk 0:00:16.6]} 43. Qe5 {[%clk 0:00:32.8]} 43... Re8 {[%clk 0:00:15.9]} 44.
Qf4 {[%clk 0:00:32.2]} 44... Kg8 {[%clk 0:00:15.6]} 45. Rxf6 {[%clk 0:00:30.6]}
45... gxf6 {[%clk 0:00:15.8]} 46. Qxf6 {[%clk 0:00:31.5]} 46... Qe7 {[%clk
0:00:09.1]} 47. Qxh6 {[%clk 0:00:29.9]} 47... Qe5 {[%clk 0:00:09.6]} 48. h4
{[%clk 0:00:25.4]} 48... Qe1 {[%clk 0:00:09.4]} 49. Qf6 {[%clk 0:00:24.6]} 49...
Qe5 {[%clk 0:00:09]} 50. Qf3 {[%clk 0:00:25]} 50... Qe4 {[%clk 0:00:09]} 51. Qh5
{[%clk 0:00:23]} 51... Qg6 {[%clk 0:00:08.7]} 52. Qb5 {[%clk 0:00:22]} 52... Rc8
{[%clk 0:00:07.3]} 53. Nf5 {[%clk 0:00:20]} 53... Qf6 {[%clk 0:00:06.4]} 54. Qd7
{[%clk 0:00:18.7]} 54... Kf8 {[%clk 0:00:05.7]} 55. Qxc8+ {[%clk 0:00:18.3]} 1-0

[Event "*** Titled Tuesday Blitz"]
[Site "Chess.com"]
[Date "2020.10.20"]
[Round "7"]
[White "Orest_Vovk"]
[Black "K_A_S_T_O_R"]
[Result "1/2-1/2"]
[WhiteElo "2520"]
[BlackElo "2826"]
[TimeControl "180+1"]
[EndTime "11:20:49 PDT"]
[Termination "Game drawn by repetition"]

1. h3 {[%clk 0:03:00.9]} 1... d5 {[%clk 0:02:58.5]} 2. e4 {[%clk 0:02:57.9]}
2... dxe4 {[%clk 0:02:57.7]} 3. Nc3 {[%clk 0:02:58.1]} 3... Nf6 {[%clk
0:02:57.1]} 4. Qe2 {[%clk 0:02:58.4]} 4... Nc6 {[%clk 0:02:56.1]} 5. Nxe4 {[%clk
0:02:57.8]} 5... Nd4 {[%clk 0:02:53.7]} 6. Nxf6+ {[%clk 0:02:57.6]} 6... gxf6
{[%clk 0:02:54.6]} 7. Qd1 {[%clk 0:02:58.2]} 7... Bf5 {[%clk 0:02:52.5]} 8. d3
{[%clk 0:02:58.3]} 8... e5 {[%clk 0:02:47.8]} 9. Be3 {[%clk 0:02:57.9]} 9... Qd5
{[%clk 0:02:42.6]} 10. c3 {[%clk 0:02:56.7]} 10... Nc6 {[%clk 0:02:42.2]} 11.
Qb3 {[%clk 0:02:52.1]} 11... O-O-O {[%clk 0:02:37.1]} 12. Qxd5 {[%clk
0:02:51.2]} 12... Rxd5 {[%clk 0:02:38]} 13. O-O-O {[%clk 0:02:51.3]} 13... Be7
{[%clk 0:02:22.1]} 14. g4 {[%clk 0:02:50.7]} 14... Bg6 {[%clk 0:02:22.2]} 15. f4
{[%clk 0:02:40]} 15... f5 {[%clk 0:02:07]} 16. Bg2 {[%clk 0:02:28.5]} 16... exf4
{[%clk 0:01:49.7]} 17. Bxd5 {[%clk 0:02:05.9]} 17... fxe3 {[%clk 0:01:49.2]} 18.
Nf3 {[%clk 0:01:52.6]} 18... f4 {[%clk 0:01:41.4]} 19. Be4 {[%clk 0:01:34]}
19... Bf6 {[%clk 0:01:34.4]} 20. Rdf1 {[%clk 0:01:10.6]} 20... Bxe4 {[%clk
0:01:10.4]} 21. dxe4 {[%clk 0:01:10]} 21... Re8 {[%clk 0:01:09]} 22. e5 {[%clk
0:00:42.2]} 22... Nxe5 {[%clk 0:01:04.2]} 23. Nd4 {[%clk 0:00:38.6]} 23... Bh4
{[%clk 0:00:42.9]} 24. Kc2 {[%clk 0:00:31.6]} 24... Bf2 {[%clk 0:00:35.8]} 25.
Rh2 {[%clk 0:00:23.5]} 25... Bg3 {[%clk 0:00:28.4]} 26. Rg2 {[%clk 0:00:17.2]}
26... Nc6 {[%clk 0:00:24]} 27. Ne2 {[%clk 0:00:15.3]} 27... Rd8 {[%clk
0:00:08.3]} 28. Nxf4 {[%clk 0:00:12.2]} 28... Bf2 {[%clk 0:00:06.7]} 29. Rgxf2
{[%clk 0:00:11.4]} 29... exf2 {[%clk 0:00:06.6]} 30. Rxf2 {[%clk 0:00:12.3]}
30... Ne5 {[%clk 0:00:07.1]} 31. Nh5 {[%clk 0:00:11.8]} 31... Rd6 {[%clk
0:00:06.5]} 32. Rf5 {[%clk 0:00:10.3]} 32... Re6 {[%clk 0:00:06.2]} 33. Nf4
{[%clk 0:00:09.7]} 33... Re8 {[%clk 0:00:06.4]} 34. Nd5 {[%clk 0:00:07.8]} 34...
h6 {[%clk 0:00:06.2]} 35. Nf6 {[%clk 0:00:07.5]} 35... Re6 {[%clk 0:00:06.4]}
36. Ng8 {[%clk 0:00:07.3]} 36... Nc4 {[%clk 0:00:07]} 37. Kb3 {[%clk 0:00:04]}
37... Nd2+ {[%clk 0:00:05.6]} 38. Kc2 {[%clk 0:00:04.4]} 38... Nc4 {[%clk
0:00:06.1]} 39. Kb3 {[%clk 0:00:04.8]} 39... Nd2+ {[%clk 0:00:06]} 40. Kc2
{[%clk 0:00:05.1]} 40... Ne4 {[%clk 0:00:06.3]} 41. Rh5 {[%clk 0:00:04.5]} 41...
Ng5 {[%clk 0:00:05.3]} 42. Rxh6 {[%clk 0:00:04.4]} 42... Re2+ {[%clk 0:00:05.4]}
43. Kd3 {[%clk 0:00:04.9]} 43... Rh2 {[%clk 0:00:05.9]} 44. Ne7+ {[%clk
0:00:04.9]} 44... Kd7 {[%clk 0:00:05.5]} 45. Nf5 {[%clk 0:00:05.7]} 45... Rxh3+
{[%clk 0:00:05.8]} 46. Rxh3 {[%clk 0:00:05.7]} 46... Nxh3 {[%clk 0:00:06.7]} 47.
Ke4 {[%clk 0:00:05.4]} 47... Ng5+ {[%clk 0:00:07.2]} 48. Kf4 {[%clk 0:00:05.6]}
48... f6 {[%clk 0:00:06.6]} 49. Ne3 {[%clk 0:00:05]} 49... Ke6 {[%clk
0:00:06.6]} 50. Nc2 {[%clk 0:00:03.9]} 50... Nf7 {[%clk 0:00:07.1]} 51. Nd4+
{[%clk 0:00:04.1]} 51... Ke7 {[%clk 0:00:07.8]} 52. Kf5 {[%clk 0:00:04.6]} 52...
Nd6+ {[%clk 0:00:07.8]} 53. Kg6 {[%clk 0:00:05]} 53... Nf7 {[%clk 0:00:06.8]}
54. Nf5+ {[%clk 0:00:05.2]} 54... Ke6 {[%clk 0:00:07.3]} 55. Ng7+ {[%clk
0:00:05.3]} 55... Ke7 {[%clk 0:00:07.6]} 56. Nf5+ {[%clk 0:00:05.5]} 56... Ke6
{[%clk 0:00:08.1]} 57. Ng7+ {[%clk 0:00:05.7]} 57... Ke7 {[%clk 0:00:08.4]} 58.
Nf5+ {[%clk 0:00:06]} 1/2-1/2

[Event "*** Titled Tuesday Blitz"]
[Site "Chess.com"]
[Date "2020.10.20"]
[Round "7"]
[White "sergeikim"]
[Black "ENajer77"]
[Result "0-1"]
[WhiteElo "2538"]
[BlackElo "2701"]
[TimeControl "180+1"]
[EndTime "11:20:49 PDT"]
[Termination "ENajer77 won by resignation"]

1. d4 {[%clk 0:03:00.9]} 1... Nf6 {[%clk 0:02:51.9]} 2. c4 {[%clk 0:03:00.4]}
2... e6 {[%clk 0:02:48.5]} 3. Nc3 {[%clk 0:03:00]} 3... Bb4 {[%clk 0:02:47.9]}
4. Qc2 {[%clk 0:02:59.7]} 4... O-O {[%clk 0:02:45.5]} 5. a3 {[%clk 0:02:59.7]}
5... Bxc3+ {[%clk 0:02:45.7]} 6. Qxc3 {[%clk 0:03:00.3]} 6... b6 {[%clk
0:02:46.1]} 7. Nf3 {[%clk 0:02:59.9]} 7... Bb7 {[%clk 0:02:45.9]} 8. g3 {[%clk
0:02:59.4]} 8... d6 {[%clk 0:02:40.8]} 9. Bg2 {[%clk 0:02:58.7]} 9... Nbd7
{[%clk 0:02:38.7]} 10. O-O {[%clk 0:02:57.6]} 10... Qe7 {[%clk 0:02:34.5]} 11.
b3 {[%clk 0:02:56.7]} 11... a6 {[%clk 0:02:25.9]} 12. Bb2 {[%clk 0:02:56]} 12...
Rfd8 {[%clk 0:02:23.2]} 13. Bh3 {[%clk 0:02:54.4]} 13... a5 {[%clk 0:02:12.7]}
14. Nd2 {[%clk 0:02:51.2]} 14... c5 {[%clk 0:02:12.1]} 15. e3 {[%clk 0:02:47.3]}
15... h5 {[%clk 0:02:07.5]} 16. f3 {[%clk 0:02:44.8]} 16... h4 {[%clk
0:02:06.4]} 17. Rae1 {[%clk 0:02:40.6]} 17... hxg3 {[%clk 0:02:05.3]} 18. hxg3
{[%clk 0:02:39.7]} 18... Nh5 {[%clk 0:01:52.9]} 19. Kh2 {[%clk 0:02:34.6]} 19...
Qg5 {[%clk 0:01:50.6]} 20. Rg1 {[%clk 0:02:33.1]} 20... Ndf6 {[%clk 0:01:49.1]}
21. g4 {[%clk 0:02:11.9]} 21... Nf4 {[%clk 0:01:01]} 22. exf4 {[%clk 0:02:06.9]}
22... Qxf4+ {[%clk 0:01:01.9]} 23. Rg3 {[%clk 0:02:01.9]} 23... d5 {[%clk
0:00:45]} 24. Qe3 {[%clk 0:01:54.3]} 24... Qxe3 {[%clk 0:00:30.6]} 25. Rxe3
{[%clk 0:01:53]} 25... cxd4 {[%clk 0:00:30]} 26. Re1 {[%clk 0:01:20.2]} 26... a4
{[%clk 0:00:28.5]} 27. cxd5 {[%clk 0:01:10.8]} 27... Nxd5 {[%clk 0:00:22.1]} 28.
b4 {[%clk 0:01:10.5]} 28... Nf4 {[%clk 0:00:17.6]} 29. Ne4 {[%clk 0:01:03.9]}
29... Rac8 {[%clk 0:00:15.8]} 30. Rc1 {[%clk 0:00:47.7]} 30... Rxc1 {[%clk
0:00:14.5]} 31. Bxc1 {[%clk 0:00:47.2]} 31... Ne2 {[%clk 0:00:14.6]} 32. Rg1
{[%clk 0:00:39.1]} 32... Rc8 {[%clk 0:00:10.9]} 33. Bd2 {[%clk 0:00:32.2]} 33...
Bxe4 {[%clk 0:00:09.7]} 34. Re1 {[%clk 0:00:24.5]} 34... Bd3 {[%clk 0:00:07.3]}
35. Bf1 {[%clk 0:00:19.7]} 35... Rc2 {[%clk 0:00:07.6]} 36. Bg5 {[%clk
0:00:18.7]} 36... f6 {[%clk 0:00:03.8]} 37. Bxe2 {[%clk 0:00:14.6]} 37... Rxe2+
{[%clk 0:00:02.7]} 38. Rxe2 {[%clk 0:00:13.8]} 38... Bxe2 {[%clk 0:00:03.6]} 39.
Bf4 {[%clk 0:00:12.2]} 39... e5 {[%clk 0:00:03.7]} 40. Bd2 {[%clk 0:00:11.8]}
40... Kf7 {[%clk 0:00:03.8]} 41. Kg3 {[%clk 0:00:11.5]} 41... Ke6 {[%clk
0:00:02.8]} 42. Kf2 {[%clk 0:00:12.2]} 42... Bd1 {[%clk 0:00:02.8]} 43. b5
{[%clk 0:00:12.2]} 43... Kd5 {[%clk 0:00:03.2]} 44. Bb4 {[%clk 0:00:12.7]} 44...
g6 {[%clk 0:00:02.4]} 45. Be7 {[%clk 0:00:12.1]} 45... f5 {[%clk 0:00:02.9]} 46.
g5 {[%clk 0:00:11.5]} 46... e4 {[%clk 0:00:02.9]} 47. fxe4+ {[%clk 0:00:11.1]}
47... fxe4 {[%clk 0:00:03.8]} 48. Ke1 {[%clk 0:00:10.8]} 48... Bb3 {[%clk
0:00:03.8]} 49. Kd2 {[%clk 0:00:10.1]} 49... Bc4 {[%clk 0:00:04.7]} 50. Bd8
{[%clk 0:00:09.7]} 50... Bxb5 {[%clk 0:00:05.6]} 51. Bxb6 {[%clk 0:00:09.5]}
51... e3+ {[%clk 0:00:06.5]} 52. Ke1 {[%clk 0:00:08.7]} 52... Ke4 {[%clk
0:00:07.4]} 53. Ba5 {[%clk 0:00:07.4]} 53... d3 {[%clk 0:00:08.3]} 0-1

[Event "*** Titled Tuesday Blitz"]
[Site "Chess.com"]
[Date "2020.10.20"]
[Round "7"]
[White "valeriocarnicelli"]
[Black "scandalgod"]
[Result "1-0"]
[WhiteElo "2597"]
[BlackElo "2386"]
[TimeControl "180+1"]
[EndTime "11:20:49 PDT"]
[Termination "valeriocarnicelli won by resignation"]

1. e4 {[%clk 0:03:00.9]} 1... e5 {[%clk 0:02:34.2]} 2. Nf3 {[%clk 0:03:00.7]}
2... Nc6 {[%clk 0:02:34.2]} 3. d4 {[%clk 0:03:01]} 3... exd4 {[%clk 0:02:34]} 4.
Nxd4 {[%clk 0:03:00.9]} 4... Bc5 {[%clk 0:02:34.5]} 5. Nb3 {[%clk 0:03:00.9]}
5... Bb6 {[%clk 0:02:34.4]} 6. Nc3 {[%clk 0:03:00.6]} 6... Nf6 {[%clk
0:02:32.7]} 7. Bg5 {[%clk 0:03:00.4]} 7... h6 {[%clk 0:02:29.3]} 8. Bh4 {[%clk
0:02:58.6]} 8... d6 {[%clk 0:02:27.8]} 9. Qe2 {[%clk 0:02:57.5]} 9... Be6 {[%clk
0:02:15.8]} 10. Nd5 {[%clk 0:02:55.9]} 10... g5 {[%clk 0:02:06.1]} 11. Bg3
{[%clk 0:02:55.4]} 11... O-O {[%clk 0:01:56.5]} 12. O-O-O {[%clk 0:02:54.1]}
12... Bxd5 {[%clk 0:01:52.4]} 13. exd5 {[%clk 0:02:55]} 13... Re8 {[%clk
0:01:50.8]} 14. Qf3 {[%clk 0:02:35.9]} 14... Ne5 {[%clk 0:01:46.8]} 15. Bxe5
{[%clk 0:02:36.1]} 15... Rxe5 {[%clk 0:01:44.3]} 16. h4 {[%clk 0:02:36.5]} 16...
g4 {[%clk 0:01:33.5]} 17. Qf4 {[%clk 0:02:36.5]} 17... Kg7 {[%clk 0:01:31.4]}
18. Bd3 {[%clk 0:02:32.5]} 18... Qd7 {[%clk 0:01:27.8]} 19. c4 {[%clk
0:02:23.3]} 19... Rae8 {[%clk 0:01:20.7]} 20. Kb1 {[%clk 0:02:12.1]} 20... Ne4
{[%clk 0:01:11.9]} 21. Bxe4 {[%clk 0:02:00.1]} 21... Rxe4 {[%clk 0:01:11.7]} 22.
Qc1 {[%clk 0:02:00.3]} 22... Qf5 {[%clk 0:01:08.8]} 23. Qc3+ {[%clk 0:01:55.5]}
23... R8e5 {[%clk 0:00:59.1]} 24. Ka1 {[%clk 0:01:54.8]} 24... Re2 {[%clk
0:00:49.8]} 25. f3 {[%clk 0:01:44.2]} 25... g3 {[%clk 0:00:39.1]} 26. Nd4 {[%clk
0:01:28.6]} 26... Bxd4 {[%clk 0:00:35.6]} 27. Qxd4 {[%clk 0:01:29]} 27... Qc2
{[%clk 0:00:33.6]} 28. f4 {[%clk 0:01:23.3]} 28... Re4 {[%clk 0:00:26.7]} 29.
Qxa7 {[%clk 0:01:07.9]} 29... Rxf4 {[%clk 0:00:23.7]} 30. Rc1 {[%clk 0:01:05.8]}
30... Qxg2 {[%clk 0:00:22.5]} 31. Qxb7 {[%clk 0:01:05.5]} 31... Rf2 {[%clk
0:00:20.5]} 32. Rhg1 {[%clk 0:00:57.6]} 32... Qf3 {[%clk 0:00:20.6]} 33. Qb3
{[%clk 0:00:35.4]} 33... Re3 {[%clk 0:00:16.6]} 34. Qd1 {[%clk 0:00:32.5]} 34...
Ree2 {[%clk 0:00:15.3]} 35. Qd4+ {[%clk 0:00:30.4]} 35... f6 {[%clk 0:00:15]}
36. a3 {[%clk 0:00:20.9]} 36... g2 {[%clk 0:00:15]} 37. Rc3 {[%clk 0:00:11.7]}
37... Rf1+ {[%clk 0:00:08.1]} 38. Ka2 {[%clk 0:00:12.2]} 38... Qf4 {[%clk
0:00:05.9]} 39. Qxf4 {[%clk 0:00:11.6]} 39... Rxf4 {[%clk 0:00:05.9]} 40. Rg3+
{[%clk 0:00:11.8]} 40... Kf7 {[%clk 0:00:04.8]} 41. R3xg2 {[%clk 0:00:11.6]}
41... Rxg2 {[%clk 0:00:05.4]} 42. Rxg2 {[%clk 0:00:12.5]} 42... Rxc4 {[%clk
0:00:05.7]} 43. h5 {[%clk 0:00:13.1]} 43... Rc5 {[%clk 0:00:04.6]} 44. Rd2
{[%clk 0:00:12.6]} 44... Rc4 {[%clk 0:00:04.3]} 45. b4 {[%clk 0:00:12.2]} 45...
Rh4 {[%clk 0:00:03.9]} 46. Rc2 {[%clk 0:00:12.6]} 46... Rxh5 {[%clk 0:00:03.2]}
47. Rxc7+ {[%clk 0:00:12.8]} 47... Kg6 {[%clk 0:00:04.1]} 48. b5 {[%clk
0:00:09.8]} 48... Rxd5 {[%clk 0:00:04.6]} 49. b6 {[%clk 0:00:10.1]} 49... h5
{[%clk 0:00:05.1]} 50. b7 {[%clk 0:00:09.8]} 50... Rb5 {[%clk 0:00:05.4]} 51. a4
{[%clk 0:00:10.3]} 51... Rb6 {[%clk 0:00:05.6]} 52. a5 {[%clk 0:00:08.6]} 52...
Rb5 {[%clk 0:00:05.8]} 53. a6 {[%clk 0:00:08]} 53... h4 {[%clk 0:00:06]} 54. a7
{[%clk 0:00:08]} 54... h3 {[%clk 0:00:06]} 55. b8=Q {[%clk 0:00:07.4]} 1-0